bitfinex/quotes_BTCUSD_20240828
["timestamp","ask_amount","ask_price","bid_price","bid_amount"]
[1724884848431,1.43049955,59152.0,59151.0,0.1701987]
[1724884849978,2.10872155,59152.0,59151.0,0.0008987]
[1724884850184,2.14812155,59152.0,59151.0,0.0008987]
[1724884850538,2.15312155,59152.0,59151.0,0.0008987]
[1724884850978,2.15212155,59152.0,59151.0,0.0008987]
[1724884851375,2.15312155,59152.0,59151.0,0.0018987]
[1724884851533,2.11372155,59152.0,59151.0,0.0018987]
[1724884851743,2.11272155,59152.0,59151.0,0.0018987]
[1724884851975,2.11372155,59152.0,59151.0,0.0018987]
[1724884853415,2.11272155,59152.0,59151.0,0.0008987]
[1724884853617,2.10572155,59152.0,59151.0,0.0008987]
[1724884853819,2.10572155,59152.0,59151.0,0.0793987]
[1724884853820,2.10672155,59152.0,59151.0,0.0793987]
[1724884854341,2.11172155,59152.0,59151.0,0.0793987]
[1724884854541,2.11172155,59152.0,59151.0,0.0018987]
[1724884854774,2.11372155,59152.0,59151.0,0.0018987]
[1724884855323,2.11372155,59152.0,59138.0,0.4768]
[1724884855324,1.521837,59139.0,59138.0,0.4768]
[1724884855506,0.845507,59136.0,59135.0,0.0617]
[1724884855706,1.30252066,59136.0,59135.0,0.1374]
[1724884856014,1.42903181,59136.0,59135.0,0.1374]
[1724884856657,1.42903181,59136.0,59135.0,0.1604]
[1724884857565,1.76823481,59136.0,59135.0,0.1614]
[1724884858192,1.76823481,59136.0,59135.0,0.0997]
[1724884858193,1.76923481,59136.0,59135.0,0.0997]
[1724884858452,2.44564081,59136.0,59135.0,1e-06]
[1724884858674,2.44564081,59136.0,59116.0,0.066168]
[1724884858675,1.189092,59117.0,59116.0,0.066168]
[1724884858896,1.189092,59117.0,59106.0,0.50540786]
[1724884858897,0.507535,59109.0,59106.0,0.50540786]
[1724884859106,1.30305966,59109.0,59106.0,0.50540786]
[1724884859316,1.30305966,59109.0,59102.0,0.0670998]
[1724884859317,1.74141666,59109.0,59102.0,0.0670998]
[1724884859537,0.945892,59109.0,59102.0,0.0670998]
[1724884859741,1.06470266,59109.0,59102.0,0.0008998]
[1724884859943,0.72634566,59109.0,59108.0,0.073587]
[1724884860146,0.607535,59109.0,59108.0,0.073587]
[1724884860350,0.945892,59109.0,59108.0,0.08502989]
[1724884860554,0.946892,59109.0,59108.0,0.073587]
[1724884860793,1.285249,59109.0,59108.0,0.073587]
[1724884860993,1.284249,59109.0,59108.0,0.073587]
[1724884861385,1.286249,59109.0,59108.0,0.073587]
[1724884861602,1.286249,59109.0,59108.0,0.156887]
[1724884861834,1.285249,59109.0,59108.0,0.156887]
[1724884862012,1.286249,59109.0,59108.0,0.156887]
[1724884862240,1.286249,59109.0,59108.0,0.179887]
[1724884862451,0.947892,59109.0,59108.0,0.179887]
[1724884862624,0.271178,59109.0,59108.0,0.179887]
[1724884863045,0.271178,59109.0,59108.0,0.19135838]
[1724884863046,0.609535,59109.0,59108.0,0.19135838]
[1724884863166,0.947892,59109.0,59108.0,0.19135838]
[1724884864476,0.609535,59109.0,59108.0,0.19135838]
[1724884864677,0.947892,59109.0,59108.0,0.19135838]
[1724884866135,0.947892,59109.0,59108.0,0.179887]
[1724884867150,1.286249,59109.0,59108.0,0.179887]
[1724884867631,0.947892,59109.0,59108.0,0.179887]
[1724884868027,0.947892,59109.0,59108.0,0.1913752]
[1724884868183,0.947892,59109.0,59108.0,0.179887]
[1724884869005,0.340203,59136.0,59109.0,0.0776]
[1724884869241,0.0265201,59111.0,59110.0,0.103]
[1724884869471,0.169173,59111.0,59110.0,0.18108348]
[1724884869699,0.000818,59116.0,59110.0,0.18108348]
[1724884869700,0.000818,59116.0,59112.0,0.0666]
[1724884869966,0.000818,59116.0,59115.0,0.169161]
[1724884870202,0.005,59142.0,59115.0,0.169161]
[1724884870203,0.29741428,59145.0,59117.0,0.169154]
[1724884870413,0.02651696,59119.0,59118.0,0.14418237]
[1724884870621,0.169145,59121.0,59119.0,0.1408]
[1724884870863,0.338284,59122.0,59120.0,0.1408]
[1724884871100,0.507433,59121.0,59120.0,0.152252]
[1724884871311,0.53394729,59121.0,59120.0,0.175252]
[1724884871516,0.19565829,59121.0,59120.0,0.175252]
[1724884871670,0.53394729,59121.0,59120.0,0.175252]
[1724884871868,0.53394729,59121.0,59120.0,0.174252]
[1724884872449,0.338274,59124.0,59120.0,0.188252]
[1724884872656,0.338274,59124.0,59121.0,0.023]
[1724884872657,0.169143,59122.0,59121.0,0.023]
[1724884872835,0.169143,59122.0,59121.0,0.1042]
[1724884873053,0.169143,59122.0,59121.0,0.11562714]
[1724884873256,0.1,59123.0,59122.0,0.0794]
[1724884873460,0.1,59123.0,59122.0,0.1024]
[1724884873792,0.169141,59123.0,59122.0,0.21382455]
[1724884873998,0.269141,59123.0,59122.0,0.21382455]
[1724884874968,0.169131,59126.0,59125.0,0.1429]
[1724884875182,0.169125,59128.0,59125.0,0.023]
[1724884875391,0.169125,59128.0,59126.0,0.15431232]
[1724884875595,0.169125,59128.0,59127.0,0.1429]
[1724884875816,0.1,59129.0,59128.0,0.1429]
[1724884876022,0.338201,59137.0,59128.0,0.1429]
[1724884876023,0.169097,59138.0,59128.0,0.023]
[1724884876281,0.169096,59138.0,59137.0,0.0828]
[1724884876531,0.169096,59138.0,59137.0,0.1058]
[1724884876741,0.84548,59138.0,59137.0,0.11718081]
[1724884876898,0.507288,59138.0,59137.0,0.1058]
[1724884877320,0.507288,59138.0,59137.0,0.11718081]
[1724884877522,0.94548,59138.0,59137.0,0.1058]
[1724884878619,0.94648,59138.0,59137.0,0.1198]
[1724884878963,0.270096,59138.0,59137.0,0.1198]
[1724884879111,0.001,59138.0,59137.0,0.688895]
[1724884879481,0.02750779,59138.0,59137.0,0.1816]
[1724884879717,0.53479579,59138.0,59137.0,0.19297648]
[1724884879934,0.87398779,59138.0,59137.0,0.19997648]
[1724884880144,0.19760379,59138.0,59137.0,0.19997648]
[1724884880347,0.1,59142.0,59141.0,0.249587]
[1724884880476,0.338096,59155.0,59141.0,0.249587]
[1724884880477,0.16907,59147.0,59142.0,0.169084]
[1724884880679,0.269074,59146.0,59144.0,0.0767]
[1724884880878,0.169074,59146.0,59145.0,0.0767]
[1724884881091,0.269074,59146.0,59145.0,0.11105273]
[1724884881293,0.269074,59146.0,59145.0,0.11005273]
[1724884881906,0.000817,59152.0,59145.0,0.11005273]
[1724884882117,0.000817,59152.0,59151.0,0.169058]
[1724884882322,0.000817,59152.0,59151.0,0.17243868]
[1724884882645,0.000817,59152.0,59151.0,0.02638068]
[1724884882880,0.000817,59152.0,59151.0,0.03771787]
[1724884883090,0.000817,59152.0,59151.0,0.03433719]
[1724884883295,0.000817,59152.0,59151.0,0.09753719]
[1724884884273,0.169872,59152.0,59151.0,0.09753719]
[1724884884492,0.100817,59152.0,59151.0,0.17343719]
[1724884884899,0.100817,59152.0,59151.0,0.18743719]
[1724884885114,0.100817,59152.0,59151.0,0.20143719]
[1724884885326,0.269872,59152.0,59151.0,0.20143719]
[1724884885533,0.000817,59152.0,59151.0,0.20143719]
[1724884885720,0.338084,59157.0,59152.0,0.0796]
[1724884885721,0.338085,59157.0,59152.0,0.0796]
[1724884885919,0.16905,59154.0,59153.0,0.1649]
[1724884886157,0.16905,59154.0,59153.0,0.17620611]
[1724884886445,0.169022,59164.0,59160.0,0.169031]
[1724884886652,0.169027,59162.0,59161.0,0.16828022]
[1724884886861,0.169025,59163.0,59161.0,0.1761854]
[1724884886983,0.169027,59162.0,59161.0,0.1761854]
[1724884887195,0.845135,59162.0,59161.0,0.1761854]
[1724884887406,0.845135,59162.0,59161.0,0.1649]
[1724884887844,1.183189,59162.0,59161.0,0.1649]
[1724884888039,1.183189,59162.0,59161.0,0.023]
[1724884888307,1.183189,59162.0,59161.0,0.014]
[1724884888513,0.845177,59159.0,59158.0,0.023]
[1724884888856,1.183248,59159.0,59158.0,0.023]
[1724884889273,1.20974688,59159.0,59158.0,0.023]
[1724884889473,1.20974688,59159.0,59144.0,0.1418]
[1724884889474,0.0686,59158.0,59144.0,0.1418]
[1724884889680,0.0686,59158.0,59138.0,0.28885248]
[1724884889681,0.338192,59138.0,59137.0,0.1418]
[1724884889884,0.507288,59138.0,59137.0,0.1418]
[1724884890065,0.84548,59138.0,59137.0,0.1418]
[1724884890704,0.87198684,59138.0,59137.0,0.1418]
[1724884891786,0.02750684,59138.0,59137.0,0.1558]
[1724884891988,0.02750684,59138.0,59137.0,0.1788]
[1724884892137,0.02750684,59138.0,59137.0,0.347898]
[1724884892341,0.02750684,59138.0,59137.0,0.1928]
[1724884893366,0.02750684,59138.0,59137.0,0.361898]
[1724884894259,0.02832484,59138.0,59137.0,1.038292]
[1724884894464,0.338115,59152.0,59140.0,0.338177]
[1724884894465,0.169075,59146.0,59140.0,0.338177]
[1724884894598,0.169075,59146.0,59142.0,0.169083]
[1724884894599,0.1,59145.0,59142.0,0.169083]
[1724884894801,0.507236,59144.0,59143.0,0.0756]
[1724884895000,0.845393,59144.0,59143.0,0.0986]
[1724884897167,0.845393,59144.0,59143.0,0.1126]
[1724884897382,0.845393,59144.0,59143.0,0.1266]
[1724884898285,0.845393,59144.0,59143.0,0.13793525]
[1724884899359,0.845393,59144.0,59143.0,0.1266]
[1724884900066,0.845393,59144.0,59143.0,0.13793525]
[1724884900821,0.845393,59144.0,59143.0,0.1266]
[1724884902546,1.18355,59144.0,59143.0,0.051]
[1724884902721,1.18355,59144.0,59143.0,0.118791]
[1724884903179,1.19159067,59144.0,59143.0,0.118791]
[1724884903589,1.19159067,59144.0,59143.0,0.051]
[1724884904202,1.19159067,59144.0,59143.0,0.028]
[1724884904203,1.59834767,59144.0,59143.0,0.028]
[1724884904404,1.21761869,59144.0,59143.0,0.028]
[1724884904571,2.06301169,59144.0,59143.0,0.028]
[1724884904776,1.76525469,59144.0,59143.0,0.028]
[1724884905222,1.76525469,59144.0,59143.0,0.014]
[1724884905631,1.76525469,59144.0,59143.0,0.028]
[1724884905775,1.76525469,59144.0,59143.0,0.014]
[1724884906244,1.76525469,59144.0,59143.0,0.037]
[1724884906491,1.76525469,59144.0,59143.0,0.051]
[1724884906930,1.76525469,59144.0,59143.0,0.023]
[1724884907128,1.76825469,59144.0,59143.0,0.051]
[1724884907240,1.76625469,59144.0,59143.0,0.051]
[1724884907454,1.76525469,59144.0,59143.0,0.023]
[1724884907891,1.76625469,59144.0,59143.0,0.051]
[1724884910154,1.76625469,59144.0,59143.0,0.028]
[1724884911305,1.75821402,59144.0,59143.0,0.028]
[1724884911526,1.75921402,59144.0,59143.0,0.014]
[1724884911965,1.76021402,59144.0,59143.0,0.028]
[1724884912169,1.76021402,59144.0,59143.0,0.014]
[1724884912619,1.76021402,59144.0,59143.0,0.028]
[1724884912961,1.75821402,59144.0,59143.0,0.028]
[1724884914069,1.76021402,59144.0,59143.0,0.028]
[1724884916639,1.81781207,59144.0,59143.0,0.028]
[1724884916790,1.81781207,59144.0,59137.0,0.0008987]
[1724884916791,1.88987828,59138.0,59137.0,0.0008987]
[1724884916986,2.36847028,59138.0,59137.0,0.0008987]
[1724884918167,2.37447028,59138.0,59137.0,0.0148987]
[1724884918317,2.37447028,59138.0,59137.0,0.0008987]
[1724884919153,2.37047028,59138.0,59137.0,0.0118987]
[1724884919321,2.37547028,59138.0,59137.0,0.0118987]
[1724884919748,2.37547028,59138.0,59137.0,0.0068987]
[1724884919919,2.37647028,59138.0,59137.0,0.0178987]
[1724884920521,2.40298371,59138.0,59137.0,0.0178987]
[1724884920843,2.39798371,59138.0,59137.0,0.0178987]
[1724884921042,2.26047028,59138.0,59137.0,0.0178987]
[1724884921630,2.26547028,59138.0,59137.0,0.0178987]
[1724884921830,2.26747028,59138.0,59137.0,0.0178987]
[1724884922085,2.33607028,59138.0,59137.0,0.0178987]
[1724884922300,2.33607028,59138.0,59123.0,0.0008998]
[1724884922301,1.524224,59124.0,59123.0,0.0008998]
[1724884922672,1.962496,59124.0,59123.0,0.01220058]
[1724884923173,1.962496,59124.0,59123.0,0.0008998]
[1724884923546,1.963496,59124.0,59123.0,0.0008998]
[1724884923741,1.964496,59124.0,59123.0,0.0008998]
[1724884923933,1.963496,59124.0,59123.0,0.0008998]
[1724884924445,1.99101476,59124.0,59123.0,0.0008998]
[1724884924859,1.522606,59109.0,59108.0,0.008987]
[1724884925076,1.82002028,59109.0,59108.0,0.51439486]
[1724884925280,1.92002028,59109.0,59108.0,0.02033252]
[1724884925908,1.92002028,59109.0,59108.0,0.008987]
[1724884926116,1.92302028,59109.0,59108.0,0.008987]
[1724884926548,1.92202028,59109.0,59108.0,0.008987]
[1724884926967,1.92402028,59109.0,59108.0,0.008987]
[1724884927168,1.99262028,59109.0,59108.0,0.008987]
[1724884927576,1.99262028,59109.0,59101.0,0.0807998]
[1724884927577,1.598467,59099.0,59098.0,0.067841]
[1724884927787,1.598467,59099.0,59087.0,0.0824]
[1724884927788,0.509657,59095.0,59087.0,0.0824]
[1724884927991,1.58394728,59095.0,59087.0,0.0824]
[1724884928256,1.284533,59095.0,59086.0,0.50540786]
[1724884928458,1.284533,59095.0,59084.0,0.008987]
[1724884928459,1.31106368,59095.0,59084.0,0.008987]
[1724884928667,1.31106368,59095.0,59090.0,0.0791]
[1724884928668,1.64950168,59095.0,59090.0,0.0791]
[1724884929114,1.622971,59095.0,59090.0,0.0791]
[1724884929325,1.622971,59095.0,59094.0,0.031987]
[1724884929564,1.968409,59095.0,59094.0,0.008987]
[1724884929745,2.078409,59095.0,59094.0,0.008987]
[1724884929951,2.079409,59095.0,59094.0,0.008987]
[1724884930149,2.078409,59095.0,59094.0,0.008987]
[1724884930715,2.077409,59095.0,59094.0,0.008987]
[1724884930921,2.078409,59095.0,59094.0,0.008987]
[1724884931314,2.078409,59095.0,59061.0,0.782]
[1724884931315,0.507768,59082.0,59070.0,0.0658]
[1724884931556,0.84661,59059.0,59058.0,0.0816]
[1724884931780,0.002,59060.0,59051.0,0.082]
[1724884931781,0.846682,59054.0,59051.0,0.082]
[1724884931995,0.846682,59054.0,59051.0,0.1478]
[1724884931996,1.187355,59054.0,59051.0,0.1478]
[1724884932203,1.185394,59052.0,59051.0,0.1478]
[1724884932407,1.285394,59052.0,59051.0,0.1478]
[1724884932784,1.31194334,59052.0,59051.0,0.1478]
[1724884932922,1.65062734,59052.0,59051.0,0.1478]
[1724884933124,1.65062734,59052.0,59051.0,0.0004]
[1724884933125,2.03938632,59052.0,59051.0,0.0004]
[1724884933356,2.03938632,59052.0,59048.0,0.008998]
[1724884933357,1.190453,59049.0,59048.0,0.008998]
[1724884933578,0.508173,59035.0,59034.0,0.008998]
[1724884933779,1.48815128,59035.0,59034.0,0.008998]
[1724884933980,0.510198,59032.0,59019.0,0.0768]
[1724884934186,1.641595,59032.0,59019.0,0.0768]
[1724884934391,1.68966998,59032.0,59019.0,0.0768]
[1724884934604,1.980394,59032.0,59019.0,0.0768]
[1724884935063,1.641595,59032.0,59019.0,0.0768]
[1724884935322,1.980394,59032.0,59019.0,0.0768]
[1724884935552,1.641595,59032.0,59019.0,0.0768]
[1724884935983,2.01457224,59032.0,59019.0,0.0768]
[1724884936666,2.01557224,59032.0,59015.0,0.0606]
[1724884936874,2.01457224,59032.0,59015.0,0.0606]
[1724884937329,2.01557224,59032.0,59015.0,0.0606]
[1724884937524,2.04213526,59032.0,59015.0,0.0606]
[1724884937739,2.04313526,59032.0,59015.0,0.0606]
[1724884937991,2.04213526,59032.0,59015.0,0.0606]
[1724884938471,2.02813526,59032.0,59015.0,0.0606]
[1724884938687,2.03293174,59032.0,59015.0,0.0606]
[1724884938901,2.04293174,59032.0,59015.0,0.0606]
[1724884939138,2.04193174,59032.0,59015.0,0.0606]
[1724884939598,2.04093174,59032.0,59015.0,0.0606]
[1724884939849,1.6509545,59032.0,59026.0,0.0815]
[1724884940071,0.1967585,59032.0,59031.0,0.0665]
[1724884940281,0.1977585,59032.0,59031.0,0.1675]
[1724884940532,0.02856302,59032.0,59031.0,0.17917105]
[1724884940746,0.02656302,59032.0,59031.0,0.17917105]
[1724884940952,0.338781,59036.0,59031.0,0.17917105]
[1724884941164,0.169396,59033.0,59032.0,0.022]
[1724884941405,0.508189,59033.0,59032.0,0.03366598]
[1724884941658,1.185775,59033.0,59032.0,0.01166598]
[1724884941897,1.524568,59033.0,59032.0,0.01166598]
[1724884942115,0.846997,59032.0,59031.0,0.0004]
[1724884942328,0.947997,59032.0,59031.0,0.0004]
[1724884942545,1.286796,59032.0,59031.0,0.0004]
[1724884943002,1.287796,59032.0,59031.0,0.0064]
[1724884943220,0.948997,59032.0,59031.0,0.0064]
[1724884943457,0.946997,59032.0,59031.0,0.0234]
[1724884943886,0.946997,59032.0,59031.0,0.0004]
[1724884944344,0.947997,59032.0,59031.0,0.0113009]
[1724884944548,0.947997,59032.0,59031.0,0.0343009]
[1724884945063,0.948997,59032.0,59031.0,0.0483009]
[1724884945275,0.102,59032.0,59031.0,0.1170009]
[1724884945490,0.169399,59032.0,59031.0,0.1170009]
[1724884945720,0.508198,59032.0,59031.0,0.1070009]
[1724884945945,0.170399,59032.0,59031.0,0.1130009]
[1724884946616,0.171399,59032.0,59031.0,0.1230009]
[1724884946901,0.002,59032.0,59031.0,0.3602908]
[1724884947137,0.338722,59046.0,59036.0,0.0785]
[1724884947365,0.169382,59038.0,59037.0,0.023]
[1724884947603,0.169376,59041.0,59037.0,0.023]
[1724884947834,0.16936,59046.0,59041.0,0.169372]
[1724884948070,0.338709,59048.0,59044.0,0.0601]
[1724884948340,0.508077,59046.0,59045.0,0.023]
[1724884948614,0.169355,59048.0,59045.0,0.023]
[1724884948814,0.169359,59046.0,59045.0,0.023]
[1724884949036,0.508077,59046.0,59045.0,0.023]
[1724884949263,0.53462966,59046.0,59045.0,0.023]
[1724884949476,0.12755266,59046.0,59045.0,0.023]
[1724884952397,0.02755266,59046.0,59045.0,0.13962406]
[1724884952693,0.19691166,59046.0,59045.0,0.13962406]
[1724884952921,0.53562966,59046.0,59045.0,0.128]
[1724884953126,0.509077,59046.0,59045.0,0.128]
[1724884953789,0.509077,59046.0,59045.0,0.13961668]
[1724884954002,0.847795,59046.0,59045.0,0.13961668]
[1724884954219,0.847795,59046.0,59045.0,0.128]
[1724884954888,0.001,59046.0,59045.0,0.128]
[1724884955088,0.001,59046.0,59045.0,0.13961764]
[1724884956173,0.001,59046.0,59045.0,0.64770364]
[1724884956370,0.001,59046.0,59045.0,0.13961764]
[1724884956967,0.001,59046.0,59045.0,0.30897964]
[1724884957369,0.001819,59046.0,59045.0,0.64770364]
[1724884957580,0.338679,59053.0,59048.0,0.0812]
[1724884957783,0.338674,59054.0,59049.0,0.023]
[1724884957991,0.02654986,59050.0,59049.0,0.03460743]
[1724884959596,0.02654986,59050.0,59049.0,0.04760743]
[1724884959797,0.19589786,59050.0,59049.0,0.04560743]
[1724884960044,0.53459386,59050.0,59049.0,0.048]
[1724884960257,0.53459386,59050.0,59049.0,0.04860743]
[1724884960462,0.53459386,59050.0,59049.0,0.06260743]
[1724884960667,0.87328986,59050.0,59049.0,0.07660743]
[1724884960890,0.87328986,59050.0,59049.0,0.065]
[1724884963684,1.55668186,59050.0,59049.0,0.042]
[1724884963926,1.699732,59050.0,59049.0,0.042]
[1724884964792,1.285436,59050.0,59049.0,0.042]
[1724884965900,1.285436,59050.0,59049.0,0.2105]
[1724884967062,1.285436,59050.0,59049.0,0.065]
[1724884968985,0.169345,59051.0,59049.0,0.065]
[1724884969193,0.1967187,59050.0,59049.0,0.1402]
[1724884969608,0.1967187,59050.0,59049.0,0.15179304]
[1724884970026,0.5354147,59050.0,59049.0,0.15179304]
[1724884970169,0.0273707,59050.0,59049.0,0.15179304]
[1724884970371,0.1,59057.0,59049.0,0.21749304]
[1724884970581,0.169343,59052.0,59050.0,0.023]
[1724884970939,0.169339,59053.0,59051.0,0.01158352]
[1724884971158,0.169339,59053.0,59052.0,0.023]
[1724884971384,0.1,59057.0,59053.0,0.0764]
[1724884971621,0.169329,59057.0,59054.0,0.023]
[1724884971853,0.169326,59058.0,59054.0,0.023]
[1724884972076,0.169326,59058.0,59055.0,0.06]
[1724884972301,0.169326,59058.0,59056.0,0.023]
[1724884972477,0.169326,59058.0,59057.0,0.01156493]
[1724884972681,0.1,59058.0,59057.0,0.03456493]
[1724884972911,0.169325,59058.0,59057.0,0.11276493]
[1724884973119,0.507966,59060.0,59057.0,0.11276493]
[1724884973321,0.1,59059.0,59058.0,0.023]
[1724884973532,0.338594,59068.0,59058.0,0.023]
[1724884973748,0.169311,59063.0,59059.0,0.169321]
[1724884973958,0.169302,59067.0,59062.0,0.169311]
[1724884974185,0.169302,59067.0,59063.0,0.18130934]
[1724884974393,0.169303,59066.0,59063.0,0.1716442]
[1724884974645,0.169303,59066.0,59064.0,0.02120934]
[1724884974884,0.338536,59078.0,59067.0,0.0752]
[1724884975106,0.00801378,59082.0,59068.0,0.03274056]
[1724884975312,0.169286,59072.0,59069.0,0.04420934]
[1724884975537,0.169286,59072.0,59070.0,0.01152602]
[1724884975750,0.169287,59071.0,59070.0,0.01152602]
[1724884975967,0.846437,59071.0,59070.0,0.01152602]
[1724884976207,0.946437,59071.0,59070.0,0.023]
[1724884976426,0.948437,59071.0,59070.0,0.023]
[1724884976650,0.846452,59070.0,59069.0,0.014]
[1724884976858,0.507862,59071.0,59070.0,0.014]
[1724884977069,0.507862,59071.0,59070.0,0.051]
[1724884977300,1.185012,59071.0,59070.0,0.051]
[1724884978449,1.185012,59071.0,59070.0,0.037]
[1724884978809,1.185012,59071.0,59070.0,0.051]
[1724884979389,1.21155335,59071.0,59070.0,0.051]
[1724884981176,1.21155335,59071.0,59070.0,0.028]
[1724884981177,1.55865044,59071.0,59070.0,0.028]
[1724884981385,2.00422544,59071.0,59070.0,0.028]
[1724884981610,1.66565044,59071.0,59070.0,0.028]
[1724884982255,1.185173,59063.0,59062.0,0.4768]
[1724884982466,0.50794,59062.0,59061.0,0.0788]
[1724884982875,0.87311089,59062.0,59061.0,0.0788]
[1724884983534,0.87311089,59062.0,59061.0,0.1018]
[1724884984143,0.87311089,59062.0,59061.0,0.1158]
[1724884984365,1.21173789,59062.0,59061.0,0.037]
[1724884984568,1.31173789,59062.0,59061.0,0.014]
[1724884984778,1.65036489,59062.0,59061.0,0.014]
[1724884984987,1.65036489,59062.0,59061.0,0.028]
[1724884985409,0.846695,59053.0,59052.0,0.0612]
[1724884985606,0.846695,59053.0,59052.0,0.152086]
[1724884986652,0.846695,59053.0,59052.0,0.166086]
[1724884986985,0.846695,59053.0,59052.0,0.180086]
[1724884987199,1.185373,59053.0,59052.0,0.028]
[1724884988211,1.185373,59053.0,59052.0,0.014]
[1724884988434,0.84674,59050.0,59047.0,0.1467]
[1724884988628,0.84674,59050.0,59048.0,0.023]
[1724884989432,1.185436,59050.0,59049.0,0.0149009]
[1724884989636,1.185436,59050.0,59049.0,0.0519009]
[1724884990031,1.185436,59050.0,59049.0,0.0379009]
[1724884990231,1.185436,59050.0,59049.0,0.0519009]
[1724884990695,1.21198583,59050.0,59049.0,0.0379009]
[1724884991604,1.21198583,59050.0,59049.0,0.0239009]
[1724884991808,0.53459383,59050.0,59049.0,0.0904009]
[1724884991978,0.19589783,59050.0,59049.0,0.1134009]
[1724884992180,0.53459383,59050.0,59049.0,0.12497615]
[1724884994294,1.63920406,59050.0,59049.0,0.0289009]
[1724884994492,1.75020406,59050.0,59049.0,0.0149009]
[1724884994692,1.76020406,59050.0,59049.0,0.0009009]
[1724884994893,1.76020406,59050.0,59049.0,0.0289009]
[1724884995134,2.09890006,59050.0,59049.0,0.0289009]
[1724884995541,2.09890006,59050.0,59049.0,0.0149009]
[1724884995736,1.76020406,59050.0,59049.0,0.0279009]
[1724884996272,1.76020406,59050.0,59049.0,0.0139009]
[1724884996474,2.09890006,59050.0,59049.0,0.0009009]
[1724884996684,1.599912,59043.0,59042.0,0.0009009]
[1724884996920,1.89601175,59043.0,59042.0,0.0009009]
[1724884997095,1.99601175,59043.0,59042.0,0.0009009]
[1724884997262,1.58367575,59043.0,59042.0,0.0009009]
[1724884997475,1.58367575,59043.0,59042.0,0.1483009]
[1724884997689,1.285576,59043.0,59042.0,0.1483009]
[1724884997862,1.31213091,59043.0,59042.0,0.1483009]
[1724884998100,0.97339491,59043.0,59042.0,0.1623009]
[1724884998264,0.97339491,59043.0,59042.0,0.1853009]
[1724884998663,0.97339491,59043.0,59042.0,0.1943009]
[1724884999023,0.97339491,59043.0,59042.0,0.1853009]
[1724884999582,0.97339491,59043.0,59042.0,0.1993009]
[1724885000020,0.97339491,59043.0,59042.0,0.1853009]
[1724885000227,0.97339491,59043.0,59042.0,0.21091599]
[1724885000380,0.97339491,59043.0,59042.0,0.1993009]
[1724885000585,0.97339491,59043.0,59042.0,0.1853009]
[1724885001247,0.97339491,59043.0,59042.0,0.1713009]
[1724885001465,0.97339491,59043.0,59042.0,0.1853009]
[1724885001680,0.02655491,59043.0,59042.0,0.6934119]
[1724885001904,0.02655491,59043.0,59042.0,0.3546709]
[1724885002122,0.02655491,59043.0,59042.0,0.3406709]
[1724885002326,0.02655491,59043.0,59042.0,0.3546709]
[1724885002499,0.02655491,59043.0,59042.0,0.19691201]
[1724885002705,0.53465891,59043.0,59042.0,0.19691201]
[1724885002903,0.87339491,59043.0,59042.0,0.1853009]
[1724885003255,0.87339491,59043.0,59042.0,0.1993009]
[1724885003459,0.87339491,59043.0,59042.0,0.1853009]
[1724885003460,1.21213091,59043.0,59042.0,0.1853009]
[1724885003594,1.21213091,59043.0,59042.0,0.1344009]
[1724885003802,1.21213091,59043.0,59042.0,0.0379009]
[1724885003803,1.185576,59043.0,59042.0,0.0379009]
[1724885004537,1.185576,59043.0,59042.0,0.0149009]
[1724885004728,1.526312,59043.0,59042.0,0.0289009]
[1724885004942,1.626312,59043.0,59042.0,0.0289009]
[1724885005128,1.626312,59043.0,59042.0,0.0149009]
[1724885005334,1.626312,59043.0,59042.0,0.0289009]
[1724885006124,1.626312,59043.0,59042.0,0.0149009]
[1724885006329,1.626312,59043.0,59042.0,0.0289009]
[1724885006549,1.626312,59043.0,59042.0,0.0149009]
[1724885006903,1.626312,59043.0,59042.0,0.0009009]
[1724885007077,1.626312,59043.0,59042.0,0.0149009]
[1724885007478,1.626312,59043.0,59042.0,0.0289009]
[1724885007648,1.624312,59043.0,59042.0,0.0289009]
[1724885007851,1.285576,59043.0,59042.0,0.1135009]
[1724885008079,1.285576,59043.0,59042.0,0.0519009]
[1724885008680,0.94684,59043.0,59042.0,0.0519009]
[1724885008880,0.608104,59043.0,59042.0,0.0519009]
[1724885009482,0.94684,59043.0,59042.0,0.0519009]
[1724885009697,0.608104,59043.0,59042.0,0.1982009]
[1724885009874,0.608104,59043.0,59042.0,0.20980759]
[1724885010080,0.94684,59043.0,59042.0,0.20980759]
[1724885010281,0.000819,59050.0,59043.0,0.250568]
[1724885010486,0.338708,59048.0,59045.0,0.0812]
[1724885010754,0.608069,59047.0,59046.0,0.03459201]
[1724885011106,0.02655055,59047.0,59046.0,0.03459201]
[1724885011310,0.02655055,59047.0,59046.0,0.35025101]
[1724885011512,0.02655055,59047.0,59046.0,0.18089201]
[1724885013695,0.02655055,59047.0,59046.0,0.19489201]
[1724885014340,0.53461955,59047.0,59046.0,0.20889201]
[1724885014518,0.53461955,59047.0,59046.0,0.19489201]
[1724885014853,0.53461955,59047.0,59046.0,0.20889201]
[1724885016153,0.02655055,59047.0,59046.0,0.20889201]
[1724885016356,0.19590655,59047.0,59046.0,0.20889201]
[1724885016497,0.02655055,59047.0,59046.0,0.20889201]
[1724885017130,0.02655055,59047.0,59046.0,0.37825101]
[1724885017341,0.02655055,59047.0,59046.0,0.3941604]
[1724885017586,0.02655055,59047.0,59046.0,0.7328784]
[1724885018371,0.02655055,59047.0,59046.0,1.4103144]
[1724885018588,0.000819,59050.0,59049.0,0.650051]
[1724885018829,0.000819,59050.0,59049.0,1.02766139]
[1724885019021,0.000819,59050.0,59049.0,1.03923442]
[1724885019376,0.000819,59050.0,59049.0,1.03923217]
[1724885019923,0.000819,59050.0,59049.0,1.05323219]
[1724885020142,0.000819,59050.0,59049.0,1.06723219]
[1724885020748,0.000819,59050.0,59049.0,0.22048019]
[1724885020990,0.000819,59050.0,59049.0,0.37392303]
[1724885021191,0.000819,59050.0,59049.0,0.20457303]
[1724885021354,0.000819,59050.0,59049.0,0.37392303]
[1724885024125,0.84674547,59050.0,59049.0,0.03957303]